Workbook

Sheet Форма_Инд один
A1: Определение сметной стоимости работ, предусмотренных проектной документацией по объекту строительства, используемой при определении начальной (максимальной) цены контракта, для расчета коэффициента корректировки цены контракта, необходимость которой вызвана существенным возрастанием стоимости строительных ресурсов
C3: (наименование объекта)
A5: Уровень цен по утвержденной проектной документации, используемой при определении НМЦК | F5: 1 кв. 2019 год
A6: Уровень цен выполнения Расчета | F6: 3 кв. 2021 год
A8: № п/п | B8: Вид работ/затрат | C8: Сметная стоимость работ по утвержденной проектной документации (ПД), используемой при определении НМЦК, тыс.руб. | E8: Индекс-дефлятор от даты определения Цнмцк до даты Расчета1 | F8: Сметная стоимость работ по утвержденной ПД, приведенная индексом-дефлятором к уровню цен выполнения Расчета, тыс.руб. | G8: Индекс Минстроя России, действующий на дату выполнения Расчета (для позиций по п.1.1, п. 2.1 и п. 3) / индекс-дефлятор2 (для позиций по п. 1.2 и 2.2) | H8: Пересчитанная сметная стоимость работ в уровне цен выполнения Расчета, тыс.руб. | I8: Порядок определения стоимости для включения в столбец 8
C9: 2000-01-01 | D9: в текущем уровне цен по утвержденной ПД 1 кв. 2019
D10: (Цнмцк) | E10: (Идеф) | F10: (Цнмцк х Идеф) | H10: (Цнов)
A11: 1 | B11: 2 | C11: 3 | D11: 4 | E11: 5 | F11: 6 = 4 х 5 | G11: 7 | H11: 8 | I11: 9
A12: 1 | B12: Строительно-монтажные работы | C12: =C14+C16+C15 -> 283094.8392 | D12: =D14+D16+D15 -> 2103854.923 | F12: =F14+F16+F15 -> 2217463.089 | H12: =H14+H16+H15 -> 2502828.28 | I12: столбец 8 = сумма столбца 8 по пунктам 1.1, 1.2, 1.3
B13: в том числе
A14: 1.13 | B14: Строительно-монтажные работы без учета материалов, включенных в сметную документацию с обоснованием "прайс-лист" | C14: 281435.6111 | D14: =C14*7.43 -> 2091066.591 | E14: 1.054 | F14: =D14*E14 -> 2203984.187 | G14: 8.67 | H14: =C14*G14 -> 2440046.749 | I14: столбец 8 = столбец 3 х столбец 7
A15: 1.24 | B15: Материалы, включенные в сметную документацию с обоснованием "прайс-лист" и для которых не требуется проведение конъюнктурного анализа | C15: 125 | D15: =C15*7.43 -> 928.75 | E15: =E14 -> 1.054 | F15: =D15*E15 -> 978.9025 | G15: 1.068 | H15: =D15*G15 -> 991.905 | I15: столбец 8 = столбец 4 х столбец 7
A16: 1.34 | B16: Материалы, включенные в сметную документацию с обоснованием "прайс-лист" и для которых требуется проведение конъюнктурного анализа | C16: =D16/7.73 -> 1534.228013 | D16: =Прайсы!G16 -> 11859.58254 | E16: =E14 -> 1.054 | F16: =D16*E16 -> 12500 | H16: =Прайсы!K16 -> 61789.62659 | I16: по отдельному расчету, выполненному по результатам проведения конъюнктурного анализа
A17: 2 | B17: Оборудование | C17: =C19+C21+C20 -> 17430.28074 | D17: =D19+D21+D20 -> 6051.555977 | F17: =F19+F21+F20 -> 6378.34 | H17: =H19+H21+H20 -> 9660.917594 | I17: столбец 8 = сумма столбца 8 по пунктам 2.1, 2.2, 2.3
B18: в том числе
A19: 2.1 | B19: Оборудование без учета оборудования, включенного в сметную документацию с обоснованием "прайс-лист" | C19: 0 | D19: =C19*4.39 -> 0 | E19: =E14 -> 1.054 | F19: =D19*E19 -> 0 | G19: 4.89 | H19: =C19*G19 -> 0 | I19: столбец 8 = столбец 3 х столбец 7
A20: 2.24 | B20: Оборудование, включенное в сметную документацию с обоснованием "прайс-лист" и для которого не требуется проведение конъюнктурного анализа | C20: 500 | D20: =C20*4.39 -> 2195 | E20: =E15 -> 1.054 | F20: 2313.53 | G20: 1.068 | H20: =D20*G20 -> 2344.26 | I20: столбец 8 = столбец 4 х столбец 7
A21: 2.34 | B21: Оборудование, включенное в сметную документацию с обоснованием "прайс-лист" и для которого требуется проведение конъюнктурного анализа | C21: =D21*4.39 -> 16930.28074 | D21: =Прайсы!G20 -> 3856.555977 | E21: =E14 -> 1.054 | F21: =D21*E21 -> 4064.81 | H21: =Прайсы!K20 -> 7316.657594 | I21: по отдельному расчету, выполненному по результатам проведения конъюнктурного анализа
A22: 3 5 | B22: Прочие работы и затраты | C22: =C24+C25 -> 10578.53 | D22: =D24+D25 -> 56199.92162 | F22: =F24+F25 -> 59234.71739 | H22: =H24+H25 -> 59632.06221 | I22: столбец 8 = сумма столбца 8 по пунктам 3.1 и 3.2
B23: в том числе
A24: 3.1 | B24: Проектные работы | C24: =10578.53*0.6 -> 6347.118 | D24: =C24*4.32*1.19 -> 32629.26421 | E24: =E14 -> 1.054 | F24: =D24*E24 -> 34391.24448 | G24: =4.59*1.19 -> 5.4621 | H24: =C24*G24 -> 34668.59323 | I24: столбец 8 = столбец 3 х столбец 7
A25: 3.2 | B25: Изыскательские работы | C25: =10578.53*0.4 -> 4231.412 | D25: =C25*4.4*1.266 -> 23570.6574 | E25: =E14 -> 1.054 | F25: 24843.4729 | G25: =4.66*1.266 -> 5.89956 | H25: =C25*G25 -> 24963.46898 | I25: столбец 8 = столбец 3 х столбец 7
B26: ВСЕГО: | C26: =C22+C17+C12 -> 311103.6499 | D26: =D22+D17+D12 -> 2166106.401 | F26: =F22+F17+F12 -> 2283076.147 | H26: =H22+H17+H12 -> 2572121.26
B28: Примечания:
B29: !!! Все данные в таблице приведены условно
A30: 1 | B30: В столбце 5 указывается индекс-дефлятор Министерства экономического развития Российской Федерации по строке «Инвестиции в основной капитал (капитальные вложения)», действующий на дату определения начальной (максимальной) цены контракта и рассчитываемый для периода с даты, определения показателя Цнмцк по дату выполнения Расчета.
A31: 2 | B31: В столбце 7 для позиций по пунктам 1.2 и 2.2 указывается индекс-дефлятор Министерства экономического развития Российской Федерации по строке «Инвестиции в основной капитал (капитальные вложения)», действующий на дату пересчета сметной документации и рассчитанный для периода с даты утверждения проектной документации до даты пересчета сметной стоимости.
A32: 3 | B32: В случае если в составе сводного сметного расчета стоимости строительства в составе утвержденной проектной документации, используемой при определении НМЦК, для определения сметной стоимости строительства в текущем уровне цен используются индексы изменения сметной стоимости по различным видам объектов капитального строительства, то стоимость строительно-монтажных работ приводятся в разрезе каждого вида объекта капитального строительства.
A33: 4 | B33: По пунктам 1.2, 1.3, 2.2 и 2.3 сметная стоимость работ, приведенная в столбце 3, не используется для определения стоимости, отражаемой в столбцах 6 и 8.
A34: 5 | B34: Перечень прочих работ и затрат определяется на основании сводного сметного расчета стоимости строительства в составе утвержденной проектной документации, используемой при определении НМЦК.
B36: Расчет коэффициента корректировки цены контракта Ккор
B38: Ккор = Цнов / (Цнмцк х Идеф) | D38: Ккор = | E38: =H26/F26 -> 1.126603361

Sheet Форма_Инд_изм вид ОКС
A1: Определение сметной стоимости работ, предусмотренных проектной документацией по объекту строительства, используемой при определении начальной (максимальной) цены контракта, для расчета коэффициента корректировки цены контракта, необходимость которой вызвана существенным возрастанием стоимости строительных ресурсов
C3: (наименование объекта)
A5: Уровень цен по утвержденной проектной документации, используемой при определении НМЦК | F5: 1 кв. 2019 год
A6: Уровень цен выполнения Расчета | F6: 3 кв. 2021 год
A8: № п/п | B8: Вид работ/затрат | C8: Сметная стоимость работ по утвержденной проектной документации (ПД), используемой при определении НМЦК, тыс.руб. | E8: Индекс Минстроя России, учитывающий специфику строительства объекта, на дату первого его публикования 1 кв. 2020 / индекс-дефлятор1.1 (для позиций по п. 1.2 и 2.2) | F8: Сметная стоимость работ по утвержденной ПД в уровне цен первого публикования индекса Минстроя России, учитывающего специфику строительства объекта, тыс.руб. | G8: Индекс-дефлятор от от даты определения Цнмцк до даты Расчета1 | H8: Сметная стоимость работ по утвержденной ПД, приведенная индексом-дефлятором к уровню цен выполнения Расчета, тыс.руб. | I8: Индекс Минстроя России, учитывающий специфику строительства объекта и действующий на дату выполнения Расчета (для позиций по п.1.1, п. 2.1 и п. 3) / индекс-дефлятор2 (для позиций по п. 1.2 и 2.2) | J8: Пересчитанная сметная стоимость работ в уровне цен выполнения Расчета, тыс.руб. | K8: Порядок определения стоимости для включения в столбец 10
C9: 2000-01-01 | D9: в текущем уровне цен по утвержденной ПД 1 кв. 2019
F10: (Цнмцк) | G10: (Идеф) | H10: (Цнмцк х Идеф) | J10: (Цнов)
A11: 1 | B11: 2 | C11: 3 | D11: 4 | E11: 5 | F11: 6 = 3 х 5 | G11: 7 | H11: 8 = 6 х 7 | I11: 9 | J11: 10 | K11: 11
A12: 1 | B12: Строительно-монтажные работы | C12: =C14+C16+C15 -> 283094.8392 | D12: =D14+D16+D15 -> 2103854.923 | F12: =F14+F16+F15 -> 2107180.813 | H12: =H14+H16+H15 -> 2214647.034 | J12: =J14+J16+J15 -> 2502877.504 | K12: столбец 10 = сумма столбца 10 по пунктам 1.1, 1.2, 1.3
B13: в том числе
A14: 1.13 | B14: Строительно-монтажные работы без учета материалов, включенных в сметную документацию с обоснованием "прайс-лист" | C14: 281435.6111 | D14: =C14*7.43 -> 2091066.591 | E14: 7.44 | F14: =C14*E14 -> 2093880.947 | G14: 1.051 | H14: =F14*G14 -> 2200668.875 | I14: 8.67 | J14: =C14*I14 -> 2440046.749 | K14: столбец 10 = столбец 3 х столбец 9
A15: 1.24 | B15: Материалы, включенные в сметную документацию с обоснованием "прайс-лист" и для которых не требуется проведение конъюнктурного анализа | C15: 125 | D15: =C15*7.43 -> 928.75 | E15: 1.04 | F15: =D15*E15 -> 965.9 | G15: =G14 -> 1.051 | H15: =F15*G15 -> 1015.1609 | I15: 1.121 | J15: =D15*I15 -> 1041.12875 | K15: столбец 10 = столбец 4 х столбец 9
A16: 1.34 | B16: Материалы, включенные в сметную документацию с обоснованием "прайс-лист" и для которых требуется проведение конъюнктурного анализа | C16: =D16/7.73 -> 1534.228013 | D16: =Прайсы!G16 -> 11859.58254 | E16: =E15 -> 1.04 | F16: =D16*E16 -> 12333.96584 | G16: =G14 -> 1.051 | H16: =F16*G16 -> 12962.9981 | J16: =Прайсы!K16 -> 61789.62659 | K16: по отдельному расчету, выполненному по результатам проведения конъюнктурного анализа
A17: 2 | B17: Оборудование | C17: =C19+C21+C20 -> 17430.28074 | D17: =D19+D21+D20 -> 6051.555977 | F17: =F19+F21+F20 -> 6293.618216 | H17: =H19+H21+H20 -> 6614.592745 | J17: =J19+J21+J20 -> 9777.252594 | K17: столбец 10 = сумма столбца 10 по пунктам 2.1, 2.2, 2.3
B18: в том числе
A19: 2.1 | B19: Оборудование без учета оборудования, включенного в сметную документацию с обоснованием "прайс-лист" | C19: 0 | D19: =C19*4.39 -> 0 | E19: 4.4 | F19: =E19*C19 -> 0 | G19: =G14 -> 1.051 | H19: =F19*G19 -> 0 | I19: 4.89 | J19: =C19*I19 -> 0 | K19: столбец 10 = столбец 3 х столбец 9
A20: 2.24 | B20: Оборудование, включенное в сметную документацию с обоснованием "прайс-лист" и для которого не требуется проведение конъюнктурного анализа | C20: 500 | D20: =C20*4.39 -> 2195 | E20: =E15 -> 1.04 | F20: =E20*D20 -> 2282.8 | G20: =G15 -> 1.051 | H20: =F20*G20 -> 2399.2228 | I20: =I15 -> 1.121 | J20: =D20*I20 -> 2460.595 | K20: столбец 10 = столбец 4 х столбец 9
A21: 2.34 | B21: Оборудование, включенное в сметную документацию с обоснованием "прайс-лист" и для которого требуется проведение конъюнктурного анализа | C21: =D21*4.39 -> 16930.28074 | D21: =Прайсы!G20 -> 3856.555977 | E21: =E15 -> 1.04 | F21: =E21*D21 -> 4010.818216 | G21: =G14 -> 1.051 | H21: =F21*G21 -> 4215.369945 | J21: =Прайсы!K20 -> 7316.657594 | K21: по отдельному расчету, выполненному по результатам проведения конъюнктурного анализа
A22: 3 5 | B22: Прочие работы и затраты | C22: =C24+C25 -> 10578.53 | D22: =D24+D25 -> 56199.92162 | F22: =F24+F25 -> 56383.5649 | H22: =H24+H25 -> 59259.12671 | J22: =J24+J25 -> 59632.06221 | K22: столбец 10 = сумма столбца 10 по пунктам 3.1 и 3.2
B23: в том числе
A24: 3.1 | B24: Проектные работы | C24: =10578.53*0.6 -> 6347.118 | D24: =C24*4.32*1.19 -> 32629.26421 | E24: 5.15 | F24: =C24*E24 -> 32687.6577 | G24: =G14 -> 1.051 | H24: =F24*G24 -> 34354.72824 | I24: =4.59*1.19 -> 5.4621 | J24: =C24*I24 -> 34668.59323 | K24: столбец 10 = столбец 3 х столбец 9
A25: 3.2 | B25: Изыскательские работы | C25: =10578.53*0.4 -> 4231.412 | D25: =C25*4.4*1.266 -> 23570.6574 | E25: 5.6 | F25: =C25*E25 -> 23695.9072 | G25: =G14 -> 1.051 | H25: =F25*G25 -> 24904.39847 | I25: =4.66*1.266 -> 5.89956 | J25: =C25*I25 -> 24963.46898 | K25: столбец 10 = столбец 3 х столбец 9
B26: ВСЕГО: | C26: =C22+C17+C12 -> 311103.6499 | D26: =D22+D17+D12 -> 2166106.401 | F26: =F22+F17+F12 -> 2169857.996 | H26: =H22+H17+H12 -> 2280520.754 | J26: =J22+J17+J12 -> 2572286.819
B28: Примечания:
B29: !!! Все данные в таблице приведены условно
A30: 1 | B30: В столбце 7 указывается индекс-дефлятор Министерства экономического развития Российской Федерации по строке «Инвестиции в основной капитал (капитальные вложения)», действующий на дату определения начальной (максимальной) цены контракта и рассчитываемый для периода с даты, определения показателя Цнмцк по дату выполнения Расчета.
A31: 1.1 | B31: В столбце 5 указывается индекс-дефлятор Министерства экономического развития Российской Федерации по строке «Инвестиции в основной капитал (капитальные вложения)», действующий на дату определения начальной (максимальной) цены контракта и рассчитываемый для периода с даты утверждения проектной документации до даты первого публикования индекса изменения сметной стоимости Минстроя России, учитывающего специфику строительства объекта.
A32: 2 | B32: В столбце 9 для позиций по пунктам 1.2 и 2.2 указывается индекс-дефлятор Министерства экономического развития Российской Федерации по строке «Инвестиции в основной капитал (капитальные вложения)», действующий на дату пересчета сметной документации и рассчитанный для периода с даты утверждения проектной документации до даты пересчета сметной стоимости.
A33: 3 | B33: В случае если в составе сводного сметного расчета стоимости строительства в составе утвержденной проектной документации, используемой при определении НМЦК, для определения сметной стоимости строительства в текущем уровне цен используются индексы изменения сметной стоимости по различным видам объектов капитального строительства, то стоимость строительно-монтажных работ приводятся в разрезе каждого вида объекта капитального строительства.
A34: 4 | B34: По пунктам 1.2, 1.3, 2.2 и 2.3 сметная стоимость работ, приведенная в столбце 3, не используется для определения стоимости, отражаемой в столбцах 6, 8 и 10.
A35: 5 | B35: Перечень прочих работ и затрат определяется на основании сводного сметного расчета стоимости строительства в составе утвержденной проектной документации, используемой при определении НМЦК.
B37: Расчет коэффициента корректировки цены контракта Ккор
B39: Ккор = Цнов / (Цнмцк х Идеф) | D39: Ккор = | G39: =J26/H26 -> 1.127938351

Sheet Форма_Инд по СЗ
A1: Определение сметной стоимости работ, предусмотренных проектной документацией по объекту строительства, используемой при определении начальной (максимальной) цены контракта, для расчета коэффициента корректировки цены контракта, необходимость которой вызвана существенным возрастанием стоимости строительных ресурсов
E3: (наименование объекта)
A5: Уровень цен по утвержденной проектной документации, используемой при определении НМЦК | G5: 1 кв. 2019 год
A6: Уровень цен выполнения Расчета | G6: 3 кв. 2021 год
A8: № п/п | B8: Вид работ/затрат | C8: Сметная стоимость работ по утвержденной проектной документации (ПД), используемой при определении НМЦК, тыс.руб. | H8: Индекс-дефлятор от даты определения Цнмцк до даты Расчета1 | I8: Сметная стоимость работ по утвержденной ПД, приведенная индексом-дефлятором к уровню цен выполнения Расчета, тыс.руб. | J8: Индекс Минстроя России, действующий на дату выполнения Расчета (для позиций по п.1.1, п. 2.1 и п. 3) | O8: Индекс-дефлятор2 (для позиций по п. 1.2 и 2.2) | P8: Пересчитанная сметная стоимость работ в уровне цен выполнения Расчета, тыс.руб. | Q8: Порядок определения стоимости для включения в столбец 16
C9: 2000-01-01 | G9: в текущем уровне цен по утвержденной ПД 1 кв. 2019
C10: Всего | D10: в том числе | J10: ОТ | K10: ЭММ | L10: МАТ | M10: Обору- дование | N10: Прочие
D11: ОТ | E11: ЭММ | F11: МАТ | G11: (Цнмцк) | H11: (Идеф) | I11: (Цнмцк х Идеф) | P11: (Цнов)
A12: 1 | B12: 2 | C12: 3 | D12: 4 | E12: 5 | F12: 6 | G12: 7 | H12: 8 | I12: 9 = 7 х 8 | J12: 10 | K12: 11 | L12: 12 | M12: 13 | N12: 14 | O12: 15 | P12: 16 | Q12: 17
A13: 1 | B13: Строительно-монтажные работы | C13: =C15+C17+C16 -> 283094.8392 | G13: =G15+G17+G16 -> 2103854.923 | I13: =I15+I17+I16 -> 2217463.089 | P13: =P15+P17+P16 -> 2505023.478 | Q13: столбец 16 = сумма столбца 16 по пунктам 1.1, 1.2, 1.3
B14: в том числе
A15: 1.13 | B15: Строительно-монтажные работы без учета материалов, включенных в сметную документацию с обоснованием "прайс-лист" | C15: =D15+E15+F15 -> 281435.6111 | D15: 50658.41001 | E15: 28143.56111 | F15: 202633.64 | G15: =C15*7.43 -> 2091066.591 | H15: 1.054 | I15: =G15*H15 -> 2203984.187 | J15: 23.2 | K15: 8.01 | L15: 5.14 | P15: =D15*J15+E15*K15+F15*L15 -> 2442241.946 | Q15: столбец 16 = (столбец 4 х столбец 10) + (столбец 5 х столбец 11) + (столбец 6 х столбец 12)
A16: 1.24 | B16: Материалы, включенные в сметную документацию с обоснованием "прайс-лист" и для которых не требуется проведение конъюнктурного анализа | C16: 125 | G16: =C16*7.43 -> 928.75 | H16: =H15 -> 1.054 | I16: =G16*H16 -> 978.9025 | O16: 1.068 | P16: =G16*O16 -> 991.905 | Q16: столбец 16 = столбец 7 х столбец 15
A17: 1.34 | B17: Материалы, включенные в сметную документацию с обоснованием "прайс-лист" и для которых требуется проведение конъюнктурного анализа | C17: =G17/7.73 -> 1534.228013 | G17: =Прайсы!G16 -> 11859.58254 | H17: =H15 -> 1.054 | I17: =G17*H17 -> 12500 | P17: =Прайсы!K16 -> 61789.62659 | Q17: по отдельному расчету, выполненному по результатам проведения конъюнктурного анализа
A18: 2 | B18: Оборудование | C18: =C20+C22+C21 -> 17430.28074 | G18: =G20+G22+G21 -> 6051.555977 | I18: =I20+I22+I21 -> 6378.34 | P18: =P20+P22+P21 -> 9660.917594 | Q18: столбец 16 = сумма столбца 16 по пунктам 2.1, 2.2, 2.3
B19: в том числе
A20: 2.1 | B20: Оборудование без учета оборудования, включенного в сметную документацию с обоснованием "прайс-лист" | C20: 0 | G20: =C20*4.39 -> 0 | H20: =H15 -> 1.054 | I20: =G20*H20 -> 0 | M20: 4.89 | P20: =C20*M20 -> 0 | Q20: столбец 16 = столбец 3 х столбец 13
A21: 2.24 | B21: Оборудование, включенное в сметную документацию с обоснованием "прайс-лист" и для которого не требуется проведение конъюнктурного анализа | C21: 500 | G21: =C21*4.39 -> 2195 | H21: =H16 -> 1.054 | I21: 2313.53 | O21: 1.068 | P21: =G21*O21 -> 2344.26 | Q21: столбец 16 = столбец 7 х столбец 15
A22: 2.34 | B22: Оборудование, включенное в сметную документацию с обоснованием "прайс-лист" и для которого требуется проведение конъюнктурного анализа | C22: =G22*4.39 -> 16930.28074 | G22: =Прайсы!G20 -> 3856.555977 | H22: =H15 -> 1.054 | I22: =G22*H22 -> 4064.81 | P22: =Прайсы!K20 -> 7316.657594 | Q22: по отдельному расчету, выполненному по результатам проведения конъюнктурного анализа
A23: 3 5 | B23: Прочие работы и затраты | C23: =C25+C26 -> 10578.53 | G23: =G25+G26 -> 56199.92162 | I23: =I25+I26 -> 59234.71739 | P23: =P25+P26 -> 59632.06221 | Q23: столбец 16 = сумма столбца 16 по пунктам 3.1 и 3.2
B24: в том числе
A25: 3.1 | B25: Проектные работы | C25: =10578.53*0.6 -> 6347.118 | G25: =C25*4.32*1.19 -> 32629.26421 | H25: =H15 -> 1.054 | I25: =G25*H25 -> 34391.24448 | O25: =4.59*1.19 -> 5.4621 | P25: =C25*O25 -> 34668.59323 | Q25: столбец 16 = столбец 3 х столбец 15
A26: 3.2 | B26: Изыскательские работы | C26: =10578.53*0.4 -> 4231.412 | G26: =C26*4.4*1.266 -> 23570.6574 | H26: =H15 -> 1.054 | I26: 24843.4729 | O26: =4.66*1.266 -> 5.89956 | P26: =C26*O26 -> 24963.46898 | Q26: столбец 16 = столбец 3 х столбец 15
B27: ВСЕГО: | C27: =C23+C18+C13 -> 311103.6499 | G27: =G23+G18+G13 -> 2166106.401 | I27: =I23+I18+I13 -> 2283076.147 | P27: =P23+P18+P13 -> 2574316.458
B29: Примечания:
B30: !!! Все данные в таблице приведены условно
B31: ОТ - оплата труда | C31: ЭММ - эксплуатация машин и механизмов | G31: МАТ - материалы
A33: 1 | B33: В столбце 8 указывается индекс-дефлятор Министерства экономического развития Российской Федерации по строке «Инвестиции в основной капитал (капитальные вложения)», действующий на дату определения начальной (максимальной) цены контракта и рассчитываемый для периода с даты определения показателя Цнмцк по дату выполнения Расчета.
A34: 2 | B34: В столбце 15 для позиций по пунктам 1.2 и 2.2 указывается индекс-дефлятор Министерства экономического развития Российской Федерации по строке «Инвестиции в основной капитал (капитальные вложения)», действующий на дату пересчета сметной документации и рассчитанный для периода с даты утверждения проектной документации до даты пересчета сметной стоимости.
A35: 3 | B35: В случае если в составе сводного сметного расчета стоимости строительства в составе утвержденной проектной документации, используемой при определении НМЦК, для определения сметной стоимости строительства в текущем уровне цен используются индексы изменения сметной стоимости по различным видам объектов капитального строительства, то стоимость строительно-монтажных работ приводятся в разрезе каждого вида объекта капитального строительства.
A36: 4 | B36: По пунктам 1.2, 1.3, 2.2 и 2.3 сметная стоимость работ, приведенная в столбце 3, не используется для определения стоимости, отражаемой в столбцах 9 и 16.
A37: 5 | B37: Перечень прочих работ и затрат определяется на основании сводного сметного расчета стоимости строительства в составе утвержденной проектной документации, используемой при определении НМЦК.
B39: Расчет коэффициента корректировки цены контракта Ккор
B41: Ккор = Цнов / (Цнмцк х Идеф) | G41: Ккор = | H41: =P27/I27 -> 1.12756487

Sheet Прайсы
A1: Определение стоимости материалов и оборудования, включенных в сметную документацию с обоснованием "прайс-лист", по результатам конъюнктурного анализа
C3: (наименование объекта)
A5: Уровень цен по утвержденной проектной документации, используемой при определении НМЦК | G5: 1 кв. 2019 год
A7: № п/п | B7: Номер ЛСР, позиция в ЛСР | C7: Наименование ресурса | D7: Ед.изм. | E7: Кол-во | F7: Цена в текущем уровне цен по утвержденной проектной документации, используемой при определении НМЦК 1 кв. 2019 | H7: Цена за ед.изм., определенная по результатам конъюнктурного анализа на дату выполнения Расчета*, руб. | K7: Цена всего объема ресурса по результатам конъюнктурного анализа, тыс.руб.
F8: за ед.изм., руб. | G8: на весь объем, тыс. руб. | H8: Прайс 1 | I8: Прайс 2 | J8: Прайс 3
A9: 1 | B9: 2 | C9: 3 | D9: 4 | E9: 5 | F9: 6 | G9: 7 = (5 х 6)/1000 | H9: 8 | K9: 9 = (5 х 8)/1000
A10: МАТЕРИАЛЫ С ОБОСНОВАНИЕМ "ПРАЙС-ЛИСТ"
A11: 1 | B11: ЛСР 02-08, п. 264 | C11: Асфальтобетон ЩМА-11 на ПБВ-60 | D11: т | E11: 350 | F11: 951.1 | G11: =E11*F11/1000 -> 332.885 | H11: 1550 | I11: 1700 | J11: 1595 | K11: =E11*H11/1000 -> 542.5
A12: 2 | B12: ЛСР 02-08, п. 265 | C12: Асфальтобетон А22НН | D12: т | E12: 500 | F12: 813.14 | G12: =E12*F12/1000 -> 406.57 | H12: 1495 | I12: 1460 | J12: 1510 | K12: =E12*I12/1000 -> 730
A13: 3 | B13: ЛСР 02-08, п. 266 | C13: Асфальтобетон А32ОТ | D13: т | E13: 400 | F13: 807.54 | G13: 323.016 | H13: 1340 | I13: 1395 | J13: 1327 | K13: =E13*I13/1000 -> 558
A14: 4
A15: 5
C16: Итого материалы | G16: =12500000/1.054/1000 -> 11859.58254 | K16: 61789.62659
A17: ОБОРУДОВАНИЕ С ОБОСНОВАНИЕМ "ПРАЙС-ЛИСТ"
A18: 1 | B18: ЛСР 08-05, п. 264 | C18: Автоматическая дорожная метеорологическая станция | D18: компл. | E18: 1 | F18: 2750000 | G18: =E18*F18 -> 2750000 | H18: 4200000 | I18: 4350000 | J18: 4540000 | K18: =E18*I18/1000 -> 4350
A19: 2
C20: Итого оборудование | G20: =4064.81*1000/1.054/1000 -> 3856.555977 | K20: 7316.657594
B22: Все данные в таблице приведены условно
A23: * | B23: Для проведения расчета принимается минимальное значение цены ресурса
